bitfinex-derivatives/quotes_SOLF0:USTF0_20260108
["timestamp","ask_amount","ask_price","bid_price","bid_amount"]
[1767876844086,104.6045,134.01,133.93,0.68776554]
[1767876844586,6.7261,133.98,133.93,0.68776554]
[1767876848894,6.7261,133.98,133.92,0.68776554]
[1767876849296,6.7261,133.98,133.91,6.7295]
[1767876849492,6.7266,133.97,133.9,7.41766554]
[1767876850588,6.7266,133.97,133.9,9.32309906]
[1767876850880,6.7271,133.96,133.89,1.90543352]
[1767876851087,6.7271,133.96,133.89,2.59319906]
[1767876851596,6.7276,133.95,133.89,9.32369906]
[1767876852300,6.7276,133.95,133.89,0.68776554]
[1767876854400,6.7281,133.94,133.88,1.90543352]
[1767876855395,90.16543352,133.96,133.9,2.59319906]
[1767876855396,6.7274,133.96,133.9,2.59319906]
[1767876855798,6.7274,133.96,133.9,9.32319906]
[1767876858290,90.16543352,133.98,133.91,7.41716554]
[1767876858291,94.9864,133.98,133.91,7.41716554]
[1767876859394,6.7265,133.97,133.91,7.41716554]
[1767876860302,88.26,133.98,133.91,7.41716554]
[1767876860303,88.26,133.98,133.92,2.59319906]
[1767876860999,88.26,133.98,133.91,1.90543352]
[1767876861800,6.727,133.97,133.9,9.32309906]
[1767876862006,90.16543352,133.99,133.9,7.41766554]
[1767876862200,1.90543352,133.97,133.9,0.68776554]
[1767876862503,90.16543352,133.98,133.9,0.68776554]
[1767876863706,6.7275,133.96,133.9,0.68776554]
[1767876867605,6.728,133.95,133.88,2.59319906]
[1767876868407,1.90543352,133.95,133.86,0.68776554]
[1767876869311,6.729,133.92,133.86,7.41976554]
[1767876869702,104.6399,133.97,133.85,90.16543352]
[1767876869703,106.54533352,133.97,133.88,2.59319906]
[1767876869901,5.74133669,133.96,133.88,2.59319906]
[1767876870099,5.74133669,133.95,133.88,0.68776554]
[1767876870302,106.54533352,133.97,133.88,0.68776554]
[1767876870504,5.74309123,133.96,133.88,0.68776554]
[1767876870704,6.7284,133.94,133.88,0.68776554]
[1767876871003,1.90543352,133.95,133.88,0.68776554]
[1767876871609,104.6399,133.97,133.88,0.68776554]
[1767876871810,1.90543352,133.95,133.88,0.68776554]
[1767876873501,5.74395932,133.94,133.88,0.68776554]
[1767876873716,6.7285,133.94,133.88,0.68776554]
[1767876874615,6.7285,133.94,133.88,7.41876554]
[1767876876810,6.7274,133.96,133.9,0.69785937]
[1767876877808,6.7265,133.97,133.91,0.69785937]
[1767876878205,5.75305191,133.96,133.91,0.69785937]
[1767876878408,6.7265,133.97,133.91,0.69785937]
[1767876878609,5.75305191,133.96,133.91,0.69785937]
[1767876878811,6.7265,133.97,133.91,0.69785937]
[1767876879114,5.75305191,133.96,133.91,0.69785937]
[1767876879314,6.7265,133.97,133.91,0.69785937]
[1767876879513,5.75496105,133.96,133.91,0.69785937]
[1767876879712,6.7265,133.97,133.91,7.42725937]
[1767876879906,5.75496258,133.96,133.91,7.42725937]
[1767876880107,6.7265,133.97,133.91,7.42725937]
[1767876880307,5.75546766,133.96,133.91,7.42725937]
[1767876880510,6.7265,133.97,133.91,7.42725937]
[1767876880710,5.75660987,133.96,133.91,7.42725937]
[1767876881015,6.7265,133.97,133.91,7.42725937]
[1767876881217,5.75652251,133.96,133.91,7.42725937]
[1767876881514,6.7265,133.97,133.91,7.42725937]
[1767876881815,5.75637681,133.96,133.91,7.42725937]
[1767876882015,6.7265,133.97,133.91,7.42725937]
[1767876882217,5.75664851,133.96,133.91,7.42725937]
[1767876882417,6.7265,133.97,133.91,7.42725937]
[1767876882618,5.75673583,133.96,133.91,7.42725937]
[1767876882916,1.90543352,133.98,133.89,0.69785937]
[1767876883113,1.90543352,133.96,133.87,0.69785937]
[1767876883310,5.75546709,133.95,133.87,0.69785937]
[1767876883506,5.75546709,133.94,133.87,7.42935937]
[1767876883818,1.90543352,133.96,133.87,7.42935937]
[1767876884022,5.75631201,133.95,133.87,7.42935937]
[1767876884220,5.75631201,133.94,133.87,7.42935937]
[1767876884521,90.18543352,133.96,133.87,7.42935937]
[1767876884820,5.75586952,133.95,133.87,7.42935937]
[1767876885021,5.75586952,133.94,133.87,7.42935937]
[1767876885521,5.75586952,133.94,133.87,0.69785937]
[1767876886023,5.75586952,133.94,133.88,0.69785937]
[1767876886520,1.90543352,133.96,133.88,0.69785937]
[1767876886521,5.75586952,133.93,133.88,0.69785937]
[1767876886721,1.90543352,133.96,133.88,0.69785937]
[1767876886922,5.7578942,133.95,133.88,0.69785937]
[1767876887223,5.7578942,133.94,133.88,0.69785937]
[1767876887423,5.7578942,133.93,133.88,0.69785937]
[1767876887625,6.7285,133.94,133.88,7.42865937]
[1767876887825,5.75910545,133.93,133.88,7.42865937]
[1767876888127,6.7285,133.94,133.88,7.42865937]
[1767876888427,5.76160258,133.93,133.88,7.42865937]
[1767876888624,6.7285,133.94,133.88,7.42865937]
[1767876888826,5.76159914,133.93,133.88,7.42865937]
[1767876889022,6.7285,133.94,133.88,7.42865937]
[1767876889221,5.76265727,133.93,133.88,7.42865937]
[1767876889426,6.7285,133.94,133.88,7.42865937]
[1767876889628,5.76267411,133.93,133.88,7.42865937]
[1767876889824,6.7285,133.94,133.88,7.42865937]
[1767876890026,5.76267411,133.93,133.88,7.42865937]
[1767876890325,6.7285,133.94,133.88,7.42865937]
[1767876890523,5.76305297,133.93,133.88,7.42865937]
[1767876890719,6.7285,133.94,133.88,7.42865937]
[1767876890927,5.76305297,133.93,133.88,7.42865937]
[1767876891126,6.7285,133.94,133.88,7.42865937]
[1767876891324,5.76373787,133.93,133.88,7.42865937]
[1767876891520,6.7285,133.94,133.88,7.42865937]
[1767876891829,5.76373782,133.93,133.88,0.69785937]
[1767876892033,6.7285,133.94,133.88,0.69785937]
[1767876892328,5.76262871,133.93,133.87,1.90543352]
[1767876892626,6.7285,133.94,133.87,1.90543352]
[1767876892823,5.76409117,133.93,133.87,1.90543352]
[1767876893026,6.7285,133.94,133.87,1.90543352]
[1767876893228,5.76314466,133.93,133.87,8.63643352]
[1767876893430,6.7285,133.94,133.87,8.63643352]
[1767876893630,5.76452232,133.93,133.87,9.33429289]
[1767876893832,6.7285,133.94,133.87,9.33429289]
[1767876894034,5.76492263,133.93,133.87,9.33429289]
[1767876894331,6.7285,133.94,133.87,9.33429289]
[1767876894525,5.76606444,133.93,133.88,7.42885937]
[1767876894732,6.7285,133.94,133.88,7.42885937]
[1767876894931,5.76607431,133.93,133.88,7.42885937]
[1767876895131,6.7285,133.94,133.88,7.42885937]
[1767876895332,5.766606,133.93,133.88,7.42885937]
[1767876895632,6.7285,133.94,133.88,7.42885937]
[1767876895931,5.76660256,133.93,133.88,7.42885937]
[1767876896131,6.7285,133.94,133.88,7.42885937]
[1767876896331,5.76646025,133.93,133.88,7.42885937]
[1767876896531,6.7285,133.94,133.88,7.42885937]
[1767876896731,5.69310754,133.93,133.88,7.42885937]
[1767876897030,6.7285,133.94,133.88,7.42885937]
[1767876897232,5.68891953,133.93,133.88,7.42885937]
[1767876897421,6.7285,133.94,133.88,7.42885937]
[1767876897618,5.6889131,133.93,133.88,7.42885937]
[1767876897832,6.7285,133.94,133.88,7.42885937]
[1767876898034,5.6889131,133.93,133.88,7.42885937]
[1767876898229,6.7285,133.94,133.88,7.42885937]
[1767876898429,5.69095016,133.93,133.88,7.42885937]
[1767876898732,6.7285,133.94,133.88,7.42885937]
[1767876899033,5.6917957,133.93,133.88,7.42885937]
[1767876899227,6.7285,133.94,133.88,7.42885937]
[1767876899426,5.69170552,133.93,133.88,7.42885937]
[1767876899628,6.7285,133.94,133.88,7.42885937]
[1767876899828,5.69171275,133.93,133.88,7.42885937]
[1767876900029,6.7285,133.94,133.88,7.42885937]
[1767876900229,5.69153204,133.93,133.88,7.42885937]
[1767876900430,6.7285,133.94,133.88,7.42885937]
[1767876900630,5.69153204,133.93,133.88,7.42885937]
[1767876900830,6.7285,133.94,133.88,7.42885937]
[1767876901033,6.7275,133.95,133.9,0.69785937]
[1767876901335,88.28,134.0,133.91,1.90543352]
[1767876901538,5.69300884,133.99,133.92,7.42675937]
[1767876901835,5.69300884,133.98,133.93,0.69785937]
[1767876902036,5.69300884,133.97,133.93,0.69785937]
[1767876902234,1.90543352,134.0,133.93,0.69785937]
[1767876902435,5.69434929,133.99,133.93,0.69785937]
[1767876902622,5.69434929,133.98,133.93,0.69785937]
[1767876902822,5.69434929,133.97,133.93,0.69785937]
[1767876903037,90.18543352,134.02,133.94,2.64691007]
[1767876903336,12.41278073,134.01,133.95,0.74147655]
[1767876903537,5.68788073,134.0,133.95,0.74147655]
[1767876903734,5.68788073,133.99,133.95,7.46897655]
[1767876904039,88.28,134.02,133.95,7.46897655]
[1767876904233,5.68780087,134.01,133.95,7.46897655]
[1767876904433,5.68780087,134.0,133.96,0.74118061]
[1767876904640,6.724,134.02,133.96,2.64661413]
[1767876904941,5.68552132,134.01,133.96,2.64661413]
[1767876905139,90.18543352,134.05,133.96,2.64661413]
[1767876905437,90.18543352,134.05,133.96,7.46808061]
[1767876905438,5.68576703,134.04,133.96,7.46808061]
[1767876905630,5.68576703,134.03,133.96,9.37351413]
[1767876905937,5.68576703,134.02,133.96,2.64661413]
[1767876906237,5.68576703,134.01,133.96,2.64661413]
[1767876906436,90.18543352,134.05,133.96,2.64661413]
[1767876906639,5.68036311,134.04,133.96,2.64661413]
[1767876906838,5.68036311,134.03,133.96,2.64661413]
[1767876907041,5.68036311,134.02,133.96,2.64661413]
[1767876907240,6.7232,134.04,133.96,9.37331413]
[1767876907440,5.68124097,134.03,133.97,0.74118061]
[1767876907741,6.7232,134.04,133.97,0.74118061]
[1767876907942,5.67871926,134.03,133.97,0.74118061]
[1767876908137,1.90543352,134.06,133.99,0.74118061]
[1767876908436,1.90543352,134.08,134.0,2.64661413]
[1767876908641,5.67453186,134.07,134.0,2.64661413]
[1767876908838,6.7219,134.07,134.0,9.37151413]
[1767876909042,192.7977,134.1,134.01,0.74118061]
[1767876909043,90.16543352,134.1,134.01,0.74118061]
[1767876909341,5.67363246,134.09,134.01,0.74118061]
[1767876909542,6.7208,134.09,134.02,2.64661413]
[1767876910646,6.7208,134.09,134.02,0.74118061]
[1767876916045,6.7208,134.09,134.02,7.46498061]
[1767876916243,6.7208,134.09,134.02,0.74118061]
[1767876916449,6.7212,134.08,134.02,0.74118061]
[1767876917748,192.7894,134.11,134.03,0.74118061]
[1767876917749,88.26,134.11,134.03,0.74118061]
[1767876918437,6.7201,134.1,134.03,7.46438061]
[1767876918947,6.7201,134.1,134.03,0.74118061]
[1767876922346,6.7206,134.09,134.03,0.74118061]
[1767876922551,88.26,134.11,134.03,0.74118061]
[1767876922948,6.721,134.08,134.03,0.74118061]
[1767876928150,6.7205,134.09,134.03,0.74118061]
[1767876932246,6.7205,134.09,134.03,7.46458061]
[1767876932855,88.26,134.11,134.04,6.7229]
[1767876934654,6.72,134.1,134.04,6.7229]
[1767876937445,6.7205,134.09,134.03,0.74118061]
[1767876937849,192.7142,134.13,134.03,0.74118061]
[1767876939451,192.7142,134.13,134.03,7.46458061]
[1767876940059,5.63345477,134.12,134.03,7.46458061]
[1767876940260,6.7199,134.1,134.03,7.46458061]
[1767876945157,2.97200814,134.12,134.03,7.46458061]
[1767876945363,6.7207,134.09,134.03,7.46458061]
[1767876948059,6.7207,134.09,134.03,0.74118061]
[1767876948361,5.67481289,134.08,134.03,0.74118061]
[1767876948563,6.7207,134.09,134.03,0.74118061]
[1767876948759,5.67481289,134.08,134.03,0.74118061]
[1767876948960,6.7207,134.09,134.03,0.74118061]
[1767876949156,5.67481279,134.08,134.03,0.74118061]
[1767876949355,6.7207,134.09,134.03,0.74118061]
[1767876949564,5.67904777,134.08,134.03,0.74118061]
[1767876949748,6.7207,134.09,134.03,0.74118061]
[1767876949953,5.67904777,134.08,134.03,0.74118061]
[1767876950153,6.7207,134.09,134.03,0.74118061]
[1767876950355,5.68257817,134.08,134.03,0.74118061]
[1767876950562,6.7207,134.09,134.03,0.74118061]
[1767876950763,5.68255861,134.08,134.03,0.74118061]
[1767876951060,6.7207,134.09,134.03,0.74118061]
[1767876951258,5.68237947,134.08,134.0,15.99642243]
[1767876951466,5.68237947,134.07,134.0,7.48157757]
[1767876951666,5.68237947,134.06,134.01,0.75697757]
[1767876951965,5.68237947,134.05,134.01,0.75697757]
[1767876952163,6.7216,134.07,134.01,0.75697757]
[1767876952365,5.68445402,134.06,134.01,0.75697757]
[1767876952568,5.68445402,134.05,134.01,0.75697757]
[1767876952766,6.7216,134.07,134.01,7.48137757]
[1767876952956,5.63975869,134.06,134.01,7.48137757]
[1767876953160,5.63975869,134.05,134.01,7.48137757]
[1767876953467,6.7216,134.07,134.01,7.48137757]
[1767876953768,5.64270081,134.06,134.01,7.48137757]
[1767876953963,5.64270081,134.05,134.01,7.48137757]
[1767876954163,6.7216,134.07,134.01,7.48137757]
[1767876954358,5.64424503,134.06,134.01,7.48137757]
[1767876954562,6.7216,134.07,134.01,7.48137757]
[1767876963076,6.7216,134.07,134.02,0.73236267]
[1767876963371,6.7208,134.09,134.03,0.73236267]
[1767876963676,5.55502428,134.08,134.03,0.73236267]
[1767876963976,5.55502428,134.07,134.03,0.73236267]
[1767876964174,6.7208,134.09,134.03,0.73236267]
[1767876964375,5.55467351,134.08,134.03,0.73236267]
[1767876964676,5.55467351,134.07,134.03,0.73236267]
[1767876964877,6.7208,134.09,134.03,0.73236267]
[1767876965078,5.55379972,134.08,134.03,0.73236267]
[1767876965377,5.55379972,134.07,134.03,0.73236267]
[1767876965571,6.721,134.08,134.03,0.73236267]
[1767876966077,5.55371279,134.07,134.03,0.73236267]
[1767876966271,6.721,134.08,134.03,0.73236267]
[1767876966576,5.55338709,134.07,134.03,0.73236267]
[1767876966877,6.721,134.08,134.03,0.73236267]
[1767876967084,5.55334326,134.07,134.03,0.73236267]
[1767876967375,6.721,134.08,134.03,0.73236267]
[1767876968178,6.7205,134.09,134.03,7.45566267]
[1767876968372,5.55612206,134.08,134.03,7.45566267]
[1767876968572,6.7205,134.09,134.03,7.45566267]
[1767876968769,5.48507158,134.08,134.03,7.45566267]
[1767876968970,6.7205,134.09,134.03,7.45566267]
[1767876969171,5.48504944,134.08,134.03,7.45566267]
[1767876969379,6.7205,134.09,134.03,7.45566267]
[1767876969580,5.48506355,134.08,134.03,7.45566267]
[1767876969878,6.7205,134.09,134.03,7.45566267]
[1767876970080,5.48506355,134.08,134.03,7.45566267]
[1767876970277,6.7205,134.09,134.03,7.45566267]
[1767876970477,5.48507152,134.08,134.03,7.45566267]
[1767876970680,6.7205,134.09,134.03,7.45566267]
[1767876970874,5.48507152,134.08,134.03,7.45566267]
[1767876971075,6.7205,134.09,134.03,7.45566267]
[1767876971283,5.48516399,134.08,134.03,7.45566267]
[1767876971484,6.7205,134.09,134.03,7.45566267]
[1767876971678,5.48661692,134.08,134.03,7.45566267]
[1767876971878,6.7205,134.09,134.03,7.45566267]
[1767876972078,5.48696283,134.08,134.03,7.45566267]
[1767876972385,6.7205,134.09,134.03,7.45566267]
[1767876972588,5.4890138,134.08,134.03,7.45566267]
[1767876972883,6.7205,134.09,134.03,7.45566267]
[1767876973186,5.48899204,134.08,134.03,7.45566267]
[1767876973386,6.7205,134.09,134.03,7.45566267]
[1767876973576,5.48824787,134.08,134.03,7.45566267]
[1767876973777,6.7205,134.09,134.03,7.45566267]
[1767876973979,5.48851462,134.08,134.03,7.45566267]
[1767876974179,6.7205,134.09,134.03,7.45566267]
[1767876974479,5.48828117,134.08,134.03,7.45566267]
[1767876974678,6.7205,134.09,134.03,7.45566267]
[1767876974879,5.48854984,134.08,134.03,7.45566267]
[1767876975080,6.7205,134.09,134.03,7.45566267]
[1767876975280,5.48867469,134.08,134.03,7.45566267]
[1767876975481,6.7205,134.09,134.03,7.45566267]
[1767876975682,5.4878944,134.08,134.03,7.45566267]
[1767876975877,1.90188128,134.09,134.01,10.02214257]
[1767876976083,14.11037353,134.08,134.01,7.47432014]
[1767876976290,5.48749225,134.07,134.01,7.47432014]
[1767876976489,8.62288128,134.08,134.01,7.47432014]
[1767876976691,5.48687884,134.07,134.01,7.47432014]
[1767876976880,8.62288128,134.08,134.01,7.47432014]
[1767876977083,5.48670906,134.07,134.02,0.75032014]
[1767876977280,6.721,134.08,134.02,0.75032014]
[1767876980491,5.48555339,134.07,134.02,0.75032014]
[1767876980689,6.721,134.08,134.02,0.75032014]
[1767876980890,5.48554068,134.07,134.02,0.75032014]
[1767876981091,6.721,134.08,134.02,0.75032014]
[1767876981391,5.48559189,134.07,134.02,0.75032014]
[1767876981583,6.721,134.08,134.02,0.75032014]
[1767876981780,5.48594635,134.07,134.02,0.75032014]
[1767876982076,6.721,134.08,134.02,0.75032014]
[1767876982279,5.48600823,134.07,134.02,0.75032014]
[1767876982475,6.721,134.08,134.02,0.75032014]
[1767876982678,5.48616171,134.07,134.02,0.75032014]
[1767876982883,6.721,134.08,134.02,0.75032014]
[1767876983190,5.48541433,134.07,134.02,0.75032014]
[1767876983384,6.721,134.08,134.02,0.75032014]
[1767876983585,5.48513546,134.07,134.02,0.75032014]
[1767876983784,6.721,134.08,134.02,0.75032014]
[1767876984086,5.48513546,134.07,134.02,0.75032014]
[1767876984284,6.721,134.08,134.02,0.75032014]
[1767876984487,5.48698331,134.07,134.02,0.75032014]
[1767876984677,6.721,134.08,134.02,0.75032014]
[1767876984886,5.48768481,134.07,134.02,7.47432014]
[1767876985080,5.48768481,134.07,134.0,10.02214257]
[1767876985081,6.7216,134.07,134.0,10.02214257]
[1767876985988,5.48744098,134.06,134.0,10.02214257]
[1767876986188,6.7216,134.07,134.0,10.02214257]
[1767876986391,5.48719061,134.06,134.0,10.02214257]
[1767876986601,6.7216,134.07,134.0,16.74674257]
[1767876986784,5.48732774,134.06,134.0,16.74674257]
[1767876986985,6.7216,134.07,134.0,16.74674257]
[1767876989790,5.46821612,134.06,134.0,16.74674257]
[1767876989990,6.7216,134.07,134.0,16.74674257]
[1767876990290,5.47223794,134.06,134.0,16.74674257]
[1767876990491,6.7216,134.07,134.0,16.74674257]
[1767876990688,5.47239991,134.06,134.0,16.74674257]
[1767876990987,6.7216,134.07,134.0,16.74674257]
[1767876991186,5.47157827,134.06,134.0,16.74674257]
[1767876991493,6.7221,134.06,134.0,7.47492014]
[1767876993993,6.7221,134.06,134.0,16.74674257]
[1767876994676,8.62338128,134.07,134.01,7.41777224]
[1767876994880,5.47612994,134.06,134.01,7.41777224]
[1767876995089,6.7215,134.07,134.01,7.41777224]
[1767876995291,5.47669212,134.06,134.01,7.41777224]
[1767876995496,6.7215,134.07,134.01,7.41777224]
[1767876995679,5.47591453,134.06,134.01,7.41777224]
[1767876995880,6.7215,134.07,134.01,7.41777224]
[1767876996080,5.47624661,134.06,134.01,7.41777224]
[1767876996297,6.7215,134.07,134.01,7.41777224]
[1767876996487,5.47597582,134.06,134.01,7.41777224]
[1767876996686,6.7215,134.07,134.01,7.41777224]
[1767876996888,5.47598232,134.06,134.01,7.41777224]
[1767876997096,6.722,134.06,134.01,7.41777224]
[1767876998596,6.722,134.06,134.01,0.69337224]
[1767877000701,104.5375,134.1,134.02,0.69337224]
[1767877000702,6.7215,134.07,134.02,0.69337224]
[1767877008704,104.5285,134.11,134.02,0.69337224]
[1767877008705,6.721,134.08,134.02,9.31925352]
[1767877014112,6.721,134.08,134.03,0.69337224]
[1767877018610,6.7205,134.09,134.03,7.41677224]
[1767877024226,6.72,134.1,134.04,9.36409747]
[1767877026925,6.72,134.1,134.05,0.73931619]
[1767877028429,6.7194,134.12,134.06,0.73931619]
[1767877028637,1.90188128,134.14,134.07,0.73931619]
[1767877029326,192.691,134.16,134.07,0.73931619]
[1767877029528,6.7185,134.13,134.07,0.73931619]
[1767877031534,6.7185,134.13,134.07,7.46071619]
[1767877032026,1.90188128,134.15,134.08,0.72502138]
[1767877032227,1.90188128,134.16,134.08,0.72502138]
[1767877032629,192.6626,134.17,134.08,0.72502138]
[1767877033024,6.7184,134.14,134.08,0.72502138]
[1767877035934,6.7184,134.14,134.09,0.72502138]
[1767877047644,6.7186,134.13,134.07,7.44642138]
[1767877058440,6.7186,134.13,134.08,6.7209]
[1767877063851,6.7186,134.13,134.07,7.44642138]
[1767877067755,6.7186,134.13,134.08,6.7209]
[1767877069147,6.718,134.14,134.08,6.7209]
[1767877072057,192.6354,134.18,134.09,7.47092129]
[1767877073659,6.7175,134.15,134.09,7.47092129]
[1767877084164,88.16,134.18,134.1,7.42289194]
[1767877084165,6.7169,134.17,134.1,7.42289194]
[1767877085071,6.7172,134.16,134.1,7.42289194]
[1767877095377,6.7177,134.15,134.1,0.70299194]
[1767877095874,194.53522091,134.18,134.08,0.75643075]
[1767877097069,1.89992091,134.16,134.08,0.75643075]
[1767877097582,6.7174,134.15,134.09,0.75643075]
[1767877099382,6.7181,134.14,134.09,0.75643075]
[1767877110589,6.7175,134.15,134.09,7.47683075]
[1767877111889,6.7175,134.15,134.1,0.75643075]
[1767877120600,6.7179,134.14,134.08,7.44933119]
[1767877134314,6.7179,134.14,134.08,16.72115362]
[1767877134610,6.7179,134.14,134.09,6.7204]
[1767877137512,6.7179,134.14,134.09,7.44883119]
[1767877138813,6.7174,134.16,134.09,7.44883119]
[1767877139211,1.89992091,134.18,134.1,0.72843119]
[1767877139510,104.46,134.2,134.11,0.72843119]
[1767877139706,104.46,134.2,134.12,1.89992091]
[1767877140615,6.7166,134.17,134.12,1.89992091]
[1767877141617,6.716,134.18,134.12,2.6283521]
[1767877143312,6.716,134.18,134.12,9.3472521]
[1767877143617,6.7155,134.19,134.14,1.89992091]
[1767877146821,88.16,134.22,134.14,9.30098825]
[1767877147116,106.35192091,134.21,134.12,0.68316734]
[1767877149421,1.89992091,134.17,134.09,1.89992091]
[1767877149922,6.7175,134.15,134.09,1.89992091]
[1767877150422,6.7175,134.15,134.09,2.58308825]
[1767877152525,6.7175,134.15,134.09,0.68316734]
[1767877171647,6.718,134.14,134.09,0.68316734]
[1767877176648,192.6136,134.18,134.09,0.68316734]
[1767877176851,88.14,134.18,134.1,0.58306188]
[1767877177055,104.4559,134.2,134.1,0.58306188]
[1767877177555,6.7169,134.17,134.1,7.30296188]
[1767877178049,104.4559,134.2,134.1,7.30296188]
[1767877178256,6.7171,134.16,134.1,0.58306188]
[1767877189472,6.7171,134.16,134.09,7.30346188]
[1767877191465,6.7171,134.16,134.1,0.58306188]
[1767877192466,104.4712,134.18,134.1,0.58306188]
[1767877193563,6.7175,134.15,134.1,0.58306188]
[1767877194869,6.7175,134.15,134.09,16.03652093]
[1767877195062,6.7175,134.15,134.09,16.61958281]
[1767877200276,6.718,134.14,134.09,9.89918281]
[1767877200467,104.4789,134.17,134.07,104.76018281]
[1767877200868,6.7179,134.14,134.09,0.58306188]
[1767877201269,5.72345042,134.13,134.08,16.03692093]
[1767877201470,5.72345042,134.12,134.08,16.03692093]
[1767877201675,6.7179,134.14,134.08,16.03692093]
[1767877201874,104.4789,134.17,134.1,6.653e-05]
[1767877201875,12.44192573,134.13,134.1,6.653e-05]
[1767877202073,5.72342573,134.12,134.07,16.62058281]
[1767877202378,5.72342573,134.11,134.07,9.31612093]
[1767877202577,5.72342573,134.1,134.02,18.63224187]
[1767877202877,5.72342573,134.09,134.02,18.63224187]
[1767877203081,5.72342573,134.08,134.03,0.54641771]
[1767877203280,104.5178,134.12,134.02,18.63224187]
[1767877203576,104.5346,134.1,134.02,18.63224187]
[1767877203976,192.6746,134.1,134.02,18.63224187]
[1767877204276,6.7209,134.09,134.0,7.26857857]
[1767877204579,88.14,134.1,134.01,0.54367857]
[1767877205280,2.96907991,134.13,134.01,0.54367857]
[1767877205472,88.16,134.13,134.03,0.54367857]
[1767877205665,104.4757,134.18,134.03,0.54367857]
[1767877205666,6.7184,134.14,134.06,0.54367857]
[1767877205968,6.7184,134.14,134.07,0.54367857]
[1767877207181,6.7185,134.13,134.05,88.70367857]
[1767877207980,6.7191,134.12,134.05,95.42607857]
[1767877211588,6.7191,134.12,134.05,7.26607857]
[1767877214492,6.7191,134.12,134.05,9.16722482]
[1767877219201,6.7187,134.13,134.06,7.26547857]
[1767877219497,6.7187,134.13,134.07,0.54367857]
[1767877223002,6.719,134.12,134.07,0.54367857]
[1767877226304,6.7184,134.13,134.07,0.54367857]
[1767877227200,6.7184,134.13,134.06,6.7218]
[1767877228598,90.06114625,134.15,134.05,0.54367857]
[1767877228804,1.90114625,134.13,134.03,0.54367857]
[1767877229008,1.90114625,134.11,134.03,0.54367857]
[1767877230201,6.72,134.1,134.04,2.44482482]
[1767877230510,90.06114625,134.13,134.04,2.44482482]
[1767877230810,88.16,134.13,134.04,2.44482482]
[1767877231006,90.06114625,134.13,134.04,2.44482482]
[1767877231606,6.7195,134.11,134.04,9.16772482]
[1767877233604,94.8789,134.13,134.06,0.50332843]
[1767877233801,1.90114625,134.17,134.09,0.50332843]
[1767877234002,88.18,134.17,134.09,0.50332843]
[1767877234399,90.08114625,134.18,134.09,0.50332843]
[1767877235308,194.55524625,134.18,134.09,0.50332843]
[1767877235607,1.90114625,134.16,134.08,1.90114625]
[1767877235807,90.08114625,134.16,134.08,1.90114625]
[1767877236008,6.7182,134.14,134.08,1.90114625]
[1767877236609,6.7182,134.14,134.07,6.7214]
[1767877236811,6.7185,134.13,134.06,1.90114625]
[1767877237111,6.7185,134.13,134.06,0.50332843]
[1767877238713,6.7185,134.13,134.06,7.22522843]
[1767877240918,6.7185,134.13,134.07,2.40447468]
[1767877245317,6.719,134.12,134.07,2.40447468]
[1767877245809,6.7196,134.11,134.05,0.50332843]
[1767877246317,1.90114625,134.12,134.04,6.7226]
[1767877247012,6.7201,134.1,134.04,6.7226]
[1767877249719,6.7201,134.1,134.04,7.22592843]
[1767877253618,6.7195,134.11,134.05,0.50332843]
[1767877254030,6.7195,134.11,134.05,7.22572843]
[1767877264530,6.72,134.1,134.05,0.50332843]
[1767877271238,6.7205,134.09,134.05,0.50332843]
[1767877275342,6.7205,134.09,134.03,7.19931246]
[1767877275540,6.7205,134.09,134.04,0.47581246]
[1767877280445,6.7199,134.11,134.04,7.19871246]
[1767877280652,6.7199,134.11,134.05,0.47581246]
[1767877281150,88.18,134.13,134.05,0.47581246]
[1767877282061,6.7201,134.1,134.05,0.47581246]
[1767877283248,6.7205,134.09,134.03,7.19921246]
[1767877286551,88.18,134.13,134.03,0.47581246]
[1767877286851,104.526,134.11,134.02,0.47581246]
[1767877287051,192.706,134.11,134.02,0.47581246]
[1767877287648,6.7213,134.08,134.02,0.47581246]
[1767877288256,6.7213,134.08,134.02,7.19971246]
[1767877288848,6.7204,134.1,134.04,0.47581246]
[1767877290762,6.7204,134.1,134.04,7.19871246]
[1767877290954,6.7204,134.1,134.05,0.47581246]
[1767877299165,6.7195,134.11,134.05,0.47581246]
[1767877300262,6.7195,134.11,134.06,0.45733792]
[1767877300461,117.9168,134.17,134.06,0.45733792]
[1767877300665,88.18,134.16,134.06,0.45733792]
[1767877300863,117.9168,134.17,134.06,0.45733792]
[1767877301063,117.9168,134.17,134.07,7.17873792]
[1767877301064,88.18,134.16,134.07,7.17873792]
[1767877301965,88.18,134.16,134.07,14.1692219]